bitfinex/quotes_BTCUSD_20260127
["timestamp","ask_amount","ask_price","bid_price","bid_amount"]
[1769537231744,0.02394531,87672.0,87655.0,0.02464729]
[1769537231950,0.18550466,87678.0,87656.0,0.19000025]
[1769537232150,0.1472,87677.0,87651.0,0.19000025]
[1769537232328,0.1472,87677.0,87654.0,0.02464729]
[1769537232536,0.1472,87677.0,87657.0,0.21464754]
[1769537232798,0.03,87677.0,87660.0,0.02464729]
[1769537233023,0.02394531,87694.0,87678.0,0.19000025]
[1769537233226,0.21550466,87691.0,87677.0,0.00146524]
[1769537233402,0.21550466,87691.0,87676.0,0.02464729]
[1769537233800,0.08701865,87691.0,87676.0,0.02464729]
[1769537234010,0.03,87691.0,87677.0,0.19000025]
[1769537234209,0.03,87691.0,87677.0,0.18115779]
[1769537234421,0.03,87689.0,87676.0,0.02464729]
[1769537235159,0.00046512,87691.0,87676.0,0.02464729]
[1769537235956,0.00046512,87691.0,87677.0,0.19000025]
[1769537236153,0.03,87690.0,87654.0,0.00059339]
[1769537236312,0.03,87686.0,87657.0,0.02464729]
[1769537236511,0.05410104,87684.0,87660.0,0.19000025]
[1769537236823,0.05410104,87684.0,87664.0,0.19000025]
[1769537237144,0.05410104,87684.0,87666.0,0.21464754]
[1769537237352,0.05410104,87678.0,87654.0,0.19000025]
[1769537237562,0.03,87678.0,87657.0,0.02464729]
[1769537237769,0.34208285,87690.0,87657.0,0.02464729]
[1769537237770,0.05410104,87674.0,87658.0,0.19000025]
[1769537238151,0.05410104,87674.0,87642.0,0.17424963]
[1769537238152,0.03,87663.0,87635.0,0.04097638]
[1769537238428,0.03,87649.0,87634.0,0.02504729]
[1769537238642,0.03,87649.0,87635.0,0.19000025]
[1769537238855,0.00929215,87658.0,87643.0,0.02464729]
[1769537239132,0.00929215,87658.0,87634.0,0.0004]
[1769537239133,0.1172,87661.0,87646.0,0.19000025]
[1769537239568,0.10852504,87698.0,87646.0,0.19000025]
[1769537239569,0.45613777,87693.0,87649.0,0.04097638]
[1769537239776,0.0613372,87677.0,87654.0,0.02464729]
[1769537239991,0.020736,87697.0,87649.0,0.04097638]
[1769537239992,0.08112661,87680.0,87657.0,0.19000025]
[1769537240212,0.17422644,87679.0,87659.0,0.21464754]
[1769537240392,0.17422647,87679.0,87659.0,0.21464754]
[1769537240614,0.03,87678.0,87659.0,0.21464754]
[1769537241070,0.18550466,87681.0,87646.0,0.00013965]
[1769537241071,0.03,87676.0,87646.0,0.00013965]
[1769537241281,0.1172,87681.0,87646.0,0.00013965]
[1769537241282,0.03,87658.0,87646.0,0.00013965]
[1769537241536,0.03,87658.0,87646.0,0.00043435]
[1769537242018,0.05410104,87654.0,87646.0,0.00043435]
[1769537242242,0.03,87652.0,87646.0,0.00043435]
[1769537245237,0.18550466,87655.0,87646.0,0.00043435]
[1769537245466,0.03,87654.0,87652.0,0.00070784]
[1769537245703,0.02422092,87667.0,87647.0,0.18869251]
[1769537245832,0.1172,87661.0,87647.0,0.02426008]
[1769537246296,0.03,87665.0,87648.0,0.18869251]
[1769537246502,0.03,87665.0,87661.0,0.18940035]
[1769537246706,0.03,87665.0,87661.0,0.18869251]
[1769537246908,0.05703052,87673.0,87656.0,0.02426008]
[1769537247102,0.05703052,87673.0,87656.0,0.02366065]
[1769537247327,0.05702978,87674.0,87656.0,0.02395535]
[1769537247328,0.05422092,87674.0,87656.0,0.02395535]
[1769537247533,0.03,87671.0,87657.0,0.18869251]
[1769537247766,0.03,87671.0,87659.0,0.18869251]
[1769537247934,0.03,87671.0,87663.0,0.18869251]
[1769537248134,0.03,87671.0,87663.0,0.1784459]
[1769537248352,0.03,87671.0,87663.0,0.16307477]
[1769537248546,0.03,87670.0,87663.0,0.14598803]
[1769537248838,0.03,87670.0,87664.0,0.02255063]
[1769537249034,0.03,87670.0,87664.0,0.20269449]
[1769537249286,0.03,87670.0,87664.0,0.18730053]
[1769537249488,0.03,87679.0,87664.0,0.18045613]
[1769537249687,0.05422092,87679.0,87664.0,0.17532178]
[1769537250096,0.05702684,87678.0,87664.0,0.17532178]
[1769537250367,0.03,87677.0,87664.0,0.17532178]
[1769537250935,0.03,87663.0,87659.0,0.0002947]
[1769537251140,0.05422092,87663.0,87659.0,0.0002947]
[1769537252538,0.05422092,87663.0,87646.0,0.21309224]
[1769537253603,0.03,87660.0,87646.0,0.18883216]
[1769537254640,0.0570312,87673.0,87646.0,0.18883216]
[1769537254641,0.02422092,87675.0,87662.0,0.18869251]
[1769537255805,0.03,87674.0,87662.0,0.18869251]
[1769537256805,0.03,87674.0,87656.0,0.02426008]
[1769537257008,0.03,87674.0,87657.0,0.18869251]
[1769537257232,0.03,87668.0,87648.0,0.02426008]
[1769537257482,0.03,87684.0,87669.0,0.18869251]
[1769537257687,0.03,87684.0,87673.0,0.18869251]
[1769537257912,0.03,87684.0,87675.0,0.18869251]
[1769537258086,0.03,87684.0,87676.0,0.02422008]
[1769537258239,0.03,87684.0,87677.0,0.18869251]
[1769537258440,0.03,87683.0,87677.0,0.17499918]
[1769537258653,0.02422092,87696.0,87683.0,0.00100254]
[1769537258848,0.02468633,87696.0,87683.0,0.00100254]
[1769537259461,0.03,87695.0,87683.0,0.00100254]
[1769537260075,0.03,87695.0,87684.0,0.01896951]
[1769537260277,0.03,87695.0,87683.0,0.00100254]
[1769537260479,0.03,87690.0,87671.0,0.18869251]
[1769537260903,0.02422092,87691.0,87671.0,0.21295259]
[1769537260904,0.03,87677.0,87671.0,0.21295259]
[1769537261104,0.03,87670.0,87652.0,0.1172]
[1769537261310,0.03,87670.0,87663.0,0.02426008]
[1769537261479,0.02422092,87693.0,87666.0,0.18869251]
[1769537261696,0.02422092,87693.0,87661.0,0.04097638]
[1769537261697,0.02422092,87693.0,87669.0,0.02426008]
[1769537261896,0.02422092,87693.0,87670.0,0.18869251]
[1769537262219,0.04417378,87699.0,87675.0,0.02426008]
[1769537262418,0.04417378,87699.0,87661.0,0.04097638]
[1769537262419,0.11376923,87698.0,87678.0,0.18869251]
[1769537262658,0.11376923,87697.0,87679.0,0.01886925]
[1769537262799,0.00013949,87699.0,87666.0,0.02426008]
[1769537262800,0.01677274,87686.0,87666.0,0.02426008]
[1769537262986,0.18605238,87685.0,87666.0,0.02426008]
[1769537263189,0.03,87684.0,87666.0,0.02426008]
[1769537263810,0.03,87683.0,87666.0,0.02426008]
[1769537264438,0.03,87683.0,87667.0,0.18869251]
[1769537264881,0.03,87682.0,87667.0,0.18869251]
[1769537265102,0.03,87682.0,87670.0,0.02426008]
[1769537265276,0.03,87682.0,87672.0,0.02426008]
[1769537265483,0.03,87682.0,87672.0,0.19925345]
[1769537265683,0.03,87682.0,87672.0,0.18726651]
[1769537265888,0.03,87686.0,87656.0,0.02426008]
[1769537266093,0.03,87684.0,87657.0,0.18869251]
[1769537266436,0.02422092,87685.0,87654.0,0.01552035]
[1769537266437,0.03,87678.0,87659.0,0.18869251]
[1769537266909,0.03,87678.0,87661.0,0.21295259]
[1769537268168,0.03,87678.0,87661.0,0.18869251]
[1769537268375,0.03,87678.0,87663.0,0.18869251]
[1769537269329,0.03,87673.0,87654.0,0.18869251]
[1769537269512,0.02422092,87674.0,87657.0,0.18869251]
[1769537269712,0.02422092,87674.0,87657.0,0.21295259]
[1769537270721,0.18605238,87673.0,87642.0,0.02426008]
[1769537270928,0.05422092,87671.0,87652.0,0.18869251]
[1769537271534,0.05422092,87671.0,87654.0,0.21295259]
[1769537271744,0.03,87669.0,87654.0,0.21295259]
[1769537271936,0.02422092,87670.0,87654.0,0.21295259]
[1769537272138,0.02422092,87670.0,87654.0,0.213418]
[1769537272373,0.02422092,87670.0,87655.0,0.18869251]
[1769537272573,0.02422092,87676.0,87655.0,0.21295259]
[1769537272735,0.03,87675.0,87655.0,0.21295259]
[1769537273079,0.05422092,87675.0,87655.0,0.21295259]
[1769537274091,0.03,87673.0,87655.0,0.21295259]
[1769537274264,1.16754115,87709.0,87655.0,0.18869251]
[1769537274265,0.05481237,87669.0,87655.0,0.18869251]
[1769537274456,0.05481237,87669.0,87654.0,0.00046541]
[1769537275172,0.03,87665.0,87654.0,0.00046541]
[1769537275335,0.03,87663.0,87654.0,0.00046541]
[1769537277596,0.02481237,87664.0,87654.0,0.00046541]
[1769537277807,0.18608653,87663.0,87654.0,0.00046541]
[1769537278014,0.03,87661.0,87654.0,0.00046541]
[1769537278216,0.02481237,87673.0,87661.0,0.01]
[1769537278534,0.02481237,87673.0,87655.0,0.22457767]
[1769537278753,0.02481237,87673.0,87655.0,0.21611551]
[1769537278944,0.03,87672.0,87655.0,0.21127955]
[1769537279151,0.03,87672.0,87657.0,0.20028606]
[1769537279367,0.03,87672.0,87659.0,0.20028606]
[1769537279606,0.03,87672.0,87659.0,0.19372466]
[1769537279811,0.03,87672.0,87659.0,0.18403715]
[1769537279980,0.03,87671.0,87659.0,0.17684666]
[1769537280367,0.03,87658.0,87654.0,0.00046541]
[1769537280567,0.02481237,87657.0,87654.0,0.00046541]
[1769537280771,0.34222324,87680.0,87654.0,0.00046541]
[1769537280772,0.05703272,87669.0,87654.0,0.00046541]
[1769537280957,0.08184609,87668.0,87654.0,0.20075147]
[1769537281163,0.18608653,87666.0,87654.0,0.00046541]
[1769537281342,0.02481237,87665.0,87654.0,0.00046541]
[1769537281547,0.03,87664.0,87654.0,0.00046541]
[1769537282188,0.03,87664.0,87655.0,0.20028606]
[1769537282410,0.03,87664.0,87654.0,0.00046541]
[1769537282997,0.43312354,87690.0,87655.0,0.04097638]
[1769537283216,0.05481237,87672.0,87655.0,0.20028606]
[1769537283419,0.05481237,87670.0,87655.0,0.20028606]
[1769537283617,0.03,87668.0,87655.0,0.20028606]
[1769537284268,0.02481237,87669.0,87655.0,0.20028606]
[1769537284534,0.02481237,87669.0,87654.0,0.00046541]
[1769537284750,0.34213188,87686.0,87641.0,0.0001]
[1769537284751,0.00046541,87654.0,87641.0,0.0001]
[1769537284963,0.03014962,87654.0,87641.0,0.00023965]
[1769537285176,0.02481237,87654.0,87641.0,0.00023965]
[1769537286008,0.03,87653.0,87641.0,0.00023965]
[1769537286212,0.03,87653.0,87641.0,0.20052571]
[1769537286591,0.03,87651.0,87641.0,0.00023965]
[1769537286733,0.03,87649.0,87641.0,0.00023965]
[1769537289699,0.03,87660.0,87649.0,0.0004654]
[1769537289914,0.03,87660.0,87645.0,0.22457767]
[1769537290110,0.03,87660.0,87645.0,0.21772548]
[1769537290375,0.03,87660.0,87645.0,0.21726058]
[1769537290602,0.03,87660.0,87649.0,0.20028606]
[1769537290811,0.32905471,87680.0,87647.0,0.04097638]
[1769537290812,0.05703111,87672.0,87652.0,0.02429161]
[1769537291023,0.03,87671.0,87656.0,0.02429161]
[1769537291229,0.13639854,87691.0,87659.0,0.20028606]
[1769537291230,0.0909003,87691.0,87659.0,0.20028606]
[1769537291431,0.0909003,87691.0,87653.0,0.1172]
[1769537291432,0.05702426,87682.0,87662.0,0.02429161]
[1769537291630,0.02481237,87686.0,87653.0,0.1172]
[1769537291631,0.05702592,87680.0,87665.0,0.22457767]
[1769537291861,0.02481237,87685.0,87665.0,0.02429161]
[1769537292054,0.03,87664.0,87655.0,0.22457767]
[1769537293062,0.03,87674.0,87655.0,0.22457767]
[1769537293551,0.03,87674.0,87655.0,0.20028606]
[1769537293741,0.03,87674.0,87655.0,0.22457767]
[1769537294272,0.05481237,87675.0,87655.0,0.02755818]
[1769537294429,0.21608653,87668.0,87653.0,0.1172]
[1769537294850,0.03,87668.0,87653.0,0.34177767]
[1769537296513,0.03,87666.0,87641.0,0.00023965]
[1769537296874,0.34222324,87680.0,87641.0,0.00023965]
[1769537296875,0.03,87650.0,87641.0,0.00023965]
[1769537297110,0.03,87647.0,87641.0,0.00023965]
[1769537297736,0.03,87640.0,87621.0,0.22457767]
[1769537297949,0.03,87640.0,87600.0,0.08426328]
[1769537297950,0.0308279,87634.0,87600.0,0.08426328]
[1769537298182,0.21608653,87631.0,87614.0,0.02429161]
[1769537298431,0.03,87629.0,87614.0,0.02429161]
[1769537298697,0.03,87622.0,87614.0,0.02429161]
[1769537299695,0.18608653,87630.0,87614.0,0.02429161]
[1769537299696,0.03,87629.0,87614.0,0.02429161]
[1769537300172,0.03,87627.0,87614.0,0.02429161]
[1769537300373,0.03,87623.0,87614.0,0.02429161]
[1769537300558,0.03,87623.0,87608.0,0.02471951]
[1769537301149,0.03,87623.0,87609.0,0.20028606]
[1769537301352,0.03,87627.0,87610.0,0.02429161]
[1769537301529,0.03,87627.0,87612.0,0.02429161]
[1769537301941,0.03,87627.0,87612.0,0.02462461]
[1769537302553,0.03,87626.0,87613.0,0.20028606]
[1769537302775,0.03,87626.0,87613.0,0.22471783]
[1769537302983,0.03,87626.0,87614.0,0.02443177]
[1769537303629,0.03,87625.0,87614.0,0.02443177]
[1769537303831,0.03,87625.0,87614.0,0.02476477]
[1769537304141,0.03,87625.0,87614.0,0.000333]
[1769537304363,0.00013944,87631.0,87596.0,0.0004]
[1769537304364,0.000333,87614.0,87596.0,0.0004]
[1769537304598,0.00013944,87631.0,87602.0,0.19734689]
[1769537304599,0.03,87613.0,87602.0,0.19734689]
[1769537304806,0.03,87613.0,87600.0,0.04097638]
[1769537304807,0.00013944,87631.0,87606.0,0.19734689]
[1769537305033,0.00013944,87631.0,87609.0,0.02497977]
[1769537305247,0.00013944,87631.0,87611.0,0.02497977]
[1769537305464,0.00013944,87631.0,87615.0,0.02497977]
[1769537305678,0.03,87629.0,87615.0,0.02497977]
[1769537305898,0.03,87625.0,87610.0,0.19734689]
[1769537306289,0.03,87625.0,87611.0,0.02497977]
[1769537306932,0.03,87624.0,87611.0,0.02497977]
[1769537307585,0.00013944,87631.0,87612.0,0.19734689]
[1769537307779,0.00013944,87631.0,87616.0,0.19734689]
[1769537307960,0.00013944,87631.0,87618.0,0.02499999]
[1769537308191,0.00013944,87631.0,87618.0,0.19470808]
[1769537308370,0.00013944,87631.0,87618.0,0.19294875]
[1769537308588,0.00013944,87631.0,87619.0,0.01882135]
[1769537308793,0.00013944,87631.0,87599.0,0.02497977]
[1769537308794,0.03,87629.0,87599.0,0.02497977]
[1769537308998,0.03,87625.0,87609.0,0.04097638]
[1769537309202,0.03,87625.0,87610.0,0.19734689]
[1769537309349,0.03,87625.0,87611.0,0.19734689]
[1769537309554,0.03,87625.0,87612.0,0.19734689]
[1769537309766,0.03,87625.0,87613.0,0.02497977]
[1769537309974,0.03,87624.0,87613.0,0.02497977]
[1769537310984,0.03,87623.0,87613.0,0.02497977]
[1769537311178,0.18328566,87629.0,87613.0,0.02497977]
[1769537312030,0.03,87628.0,87613.0,0.02497977]
[1769537313524,0.00013944,87631.0,87613.0,0.02497977]
[1769537313689,0.03,87627.0,87613.0,0.02497977]
[1769537314102,0.03,87625.0,87613.0,0.02497977]
[1769537314307,0.03,87612.0,87598.0,0.0004]
[1769537314506,0.18233736,87612.0,87598.0,0.0004]
[1769537315543,0.02342741,87614.0,87598.0,0.0004]
[1769537315743,0.03,87613.0,87598.0,0.02537977]
[1769537315950,0.03,87613.0,87598.0,0.22272666]
[1769537316365,0.1834251,87631.0,87600.0,0.02497977]
[1769537316602,0.1834251,87631.0,87610.0,0.02497977]
[1769537316804,0.03,87630.0,87613.0,0.02497977]
[1769537317161,0.21328566,87630.0,87613.0,0.02014914]
[1769537317477,0.23671307,87630.0,87613.0,0.00968154]
[1769537317685,0.03,87628.0,87613.0,0.00243375]
[1769537317889,0.05342741,87628.0,87612.0,0.19734689]
[1769537318393,0.03,87626.0,87612.0,0.19734689]
[1769537318984,0.03,87622.0,87600.0,0.02497977]
[1769537319152,0.03,87620.0,87601.0,0.22232666]
[1769537319357,0.03,87616.0,87598.0,0.0004]
[1769537319618,0.05342741,87614.0,87598.0,0.0004]
[1769537319834,0.05342741,87614.0,87598.0,0.19774689]
[1769537320011,0.05342741,87614.0,87599.0,0.19734689]
[1769537320363,0.02311129,87614.0,87599.0,0.19734689]
[1769537320568,0.03,87627.0,87607.0,0.22232666]
[1769537320773,0.03,87627.0,87608.0,0.02497977]
[1769537320970,0.05342741,87627.0,87609.0,0.19734689]
[1769537321206,0.03,87625.0,87609.0,0.18962379]
[1769537321413,0.05342741,87625.0,87609.0,0.17969337]
[1769537321614,0.05342741,87625.0,87609.0,0.17307264]
[1769537323296,0.03,87626.0,87609.0,0.17307264]
[1769537323510,0.05342741,87624.0,87609.0,0.17307264]
[1769537323913,0.05342741,87624.0,87608.0,0.02497977]
[1769537325088,0.00013944,87631.0,87598.0,0.02537977]
[1769537325089,0.03,87607.0,87598.0,0.02537977]
[1769537325285,0.03,87607.0,87598.0,0.0004]
[1769537325786,0.03,87607.0,87598.0,0.19774689]
[1769537325962,0.03,87606.0,87598.0,0.19774689]
[1769537327163,0.03,87605.0,87598.0,0.19774689]
[1769537327362,0.02342741,87623.0,87600.0,0.19734689]
[1769537327562,0.02342741,87623.0,87598.0,0.0004]
[1769537327563,0.02342741,87621.0,87603.0,0.02497977]
[1769537327764,0.02342741,87621.0,87604.0,0.19489404]
[1769537327991,0.02342741,87621.0,87604.0,0.18630868]
[1769537328161,0.05342741,87620.0,87604.0,0.17404244]
[1769537328365,0.05342741,87620.0,87604.0,0.16177449]
[1769537328592,0.05342741,87620.0,87604.0,0.14950483]
[1769537328805,0.07058952,87620.0,87604.0,0.13846068]
[1769537328998,0.07058952,87620.0,87604.0,0.13120973]
[1769537329242,0.07058952,87620.0,87604.0,0.11815676]
[1769537329413,0.05342741,87620.0,87604.0,0.10510217]
[1769537329885,0.05342741,87620.0,87604.0,0.09757871]
[1769537330239,0.05342741,87620.0,87604.0,0.07726699]
[1769537330433,0.05342741,87620.0,87604.0,0.07001184]
[1769537330575,0.05342741,87620.0,87604.0,0.06829049]
[1769537330787,0.05342741,87620.0,87604.0,0.05232729]
[1769537331142,0.1007045,87620.0,87604.0,0.03491013]
[1769537331295,0.1007045,87620.0,87604.0,0.03055539]
[1769537331660,0.03,87618.0,87603.0,0.02497977]
[1769537331798,0.03,87618.0,87598.0,0.22272666]
[1769537331799,0.23671307,87618.0,87598.0,0.22272666]
[1769537332141,0.05342741,87618.0,87600.0,0.19734689]
[1769537332712,0.05342741,87618.0,87600.0,0.22232666]
[1769537333116,0.03,87617.0,87603.0,0.02497977]
[1769537333316,0.020736,87647.0,87598.0,0.0004]
[1769537333317,0.03,87611.0,87598.0,0.0004]
[1769537333742,0.05342741,87609.0,87598.0,0.0004]
[1769537333925,0.23671307,87609.0,87598.0,0.0004]
[1769537334144,0.05342741,87605.0,87598.0,0.0004]
[1769537334564,0.0004,87598.0,87588.0,0.02497977]
[1769537334781,0.03,87602.0,87588.0,0.02497977]
[1769537335221,0.18471209,87615.0,87589.0,0.19192472]
[1769537335423,0.18471209,87615.0,87590.0,0.19192472]
[1769537335627,0.03,87614.0,87593.0,0.02495437]
[1769537335829,0.18471209,87615.0,87596.0,0.19192472]
[1769537335830,0.03,87610.0,87596.0,0.19192472]
[1769537336916,0.03,87609.0,87596.0,0.19192472]
[1769537337702,0.03,87609.0,87595.0,0.02495437]
[1769537338008,0.18471209,87611.0,87591.0,0.19192472]
[1769537338009,0.03,87607.0,87591.0,0.19192472]
[1769537338401,0.03,87605.0,87590.0,0.00013976]
[1769537338578,0.34222324,87620.0,87590.0,0.00013976]
[1769537338579,0.05269315,87603.0,87590.0,0.00013976]
[1769537339368,0.03,87603.0,87590.0,0.19206448]
[1769537339578,0.03,87608.0,87590.0,0.19206448]
[1769537340234,0.23740524,87608.0,87590.0,0.19206448]
[1769537340596,0.05269315,87608.0,87590.0,0.19206448]
[1769537340800,0.03,87599.0,87590.0,0.00013976]
[1769537340997,0.13187668,87634.0,87590.0,0.00013976]
[1769537340998,0.03,87597.0,87590.0,0.00013976]
[1769537341653,0.34279898,87630.0,87590.0,0.00013976]
[1769537341836,0.11366249,87624.0,87604.0,0.04097638]
[1769537342031,0.03,87623.0,87605.0,0.02495437]
[1769537342240,0.03,87621.0,87607.0,0.02495437]
[1769537342439,0.03,87621.0,87606.0,0.19192472]
[1769537342639,0.05269315,87621.0,87606.0,0.19192472]
[1769537343011,0.03,87619.0,87606.0,0.19192472]
[1769537343298,0.03,87619.0,87601.0,0.02495437]
[1769537343428,0.03,87613.0,87594.0,0.02495437]
[1769537343637,0.03,87609.0,87594.0,0.02495437]
[1769537344183,0.18471209,87610.0,87590.0,0.04111614]
[1769537344184,0.03,87607.0,87590.0,0.00013976]
[1769537344339,0.05269315,87603.0,87590.0,0.00013976]
[1769537344543,0.05269315,87601.0,87590.0,0.00013976]
[1769537344924,0.03,87601.0,87590.0,0.00013976]
[1769537345586,0.03,87600.0,87590.0,0.00013976]
[1769537345991,0.02269315,87606.0,87590.0,0.00013976]
[1769537346198,0.02269315,87620.0,87606.0,0.000751]
[1769537346409,0.18471209,87619.0,87601.0,0.19192472]
[1769537346620,0.03,87617.0,87601.0,0.19192472]
[1769537346998,0.03,87617.0,87603.0,0.19192472]
[1769537347180,0.03,87617.0,87603.0,0.20912939]
[1769537347393,0.03,87617.0,87603.0,0.19847329]
[1769537347598,0.05269315,87619.0,87603.0,0.18956388]
[1769537347821,0.05269315,87619.0,87603.0,0.18181268]
[1769537348016,0.05269315,87619.0,87590.0,0.00013976]
[1769537348017,0.03,87613.0,87592.0,0.19192472]
[1769537348180,0.03,87609.0,87592.0,0.19192472]
[1769537348960,0.03,87609.0,87595.0,0.02495437]
[1769537349133,0.03,87609.0,87595.0,0.21687909]
[1769537349335,0.03,87608.0,87595.0,0.21687909]
[1769537349538,0.03,87608.0,87595.0,0.19192472]
[1769537349697,0.03,87608.0,87597.0,0.19192472]
[1769537349916,0.03,87608.0,87597.0,0.21687909]
[1769537350303,0.03,87607.0,87597.0,0.21687909]
[1769537351425,0.03,87606.0,87597.0,0.21687909]
[1769537352009,0.20740524,87615.0,87598.0,0.02495437]
[1769537352010,0.02269315,87615.0,87598.0,0.02495437]
[1769537352333,0.03,87621.0,87603.0,0.19192472]
[1769537352492,0.03,87621.0,87605.0,0.19192472]
[1769537353013,0.02269315,87622.0,87599.0,0.19192472]
[1769537353014,0.21471209,87619.0,87599.0,0.19192472]
[1769537353324,0.23740524,87619.0,87599.0,0.21687909]
[1769537354336,0.28865268,87619.0,87599.0,0.21687909]
[1769537355466,0.28865268,87619.0,87600.0,0.02495437]
[1769537355646,0.28865268,87619.0,87601.0,0.21687909]
[1769537355847,0.10394059,87619.0,87601.0,0.19192472]
[1769537356074,0.03,87618.0,87604.0,0.02495437]
[1769537357019,0.03,87617.0,87599.0,0.19192472]
[1769537357223,0.03,87613.0,87591.0,0.19192472]
[1769537357444,0.03,87613.0,87593.0,0.19192472]
[1769537357663,0.03,87613.0,87595.0,0.02495437]
[1769537357895,0.05269315,87613.0,87595.0,0.02495437]
[1769537358634,0.05269315,87613.0,87596.0,0.19192472]
[1769537358858,0.05269315,87613.0,87597.0,0.02495437]
[1769537359045,0.05269315,87613.0,87597.0,0.21687909]
[1769537359405,0.05269315,87613.0,87590.0,0.00013976]
[1769537359406,0.03,87612.0,87595.0,0.19192472]
[1769537359529,0.03,87612.0,87598.0,0.02495437]
[1769537359745,0.03,87612.0,87600.0,0.02495437]
[1769537359938,0.03,87612.0,87601.0,0.19192472]
[1769537360144,0.13674954,87648.0,87603.0,0.19192472]
[1769537360344,0.03,87642.0,87623.0,0.02495437]
[1769537360564,0.03,87640.0,87624.0,0.02495437]
[1769537360782,0.03,87638.0,87625.0,0.02495437]
[1769537361020,0.03,87636.0,87625.0,0.02495437]
[1769537361200,0.03,87636.0,87627.0,0.02495437]
[1769537361551,0.03013944,87636.0,87627.0,0.02495437]
[1769537361759,0.03013944,87636.0,87615.0,0.04097638]
[1769537361760,0.000351,87648.0,87629.0,0.2329011]
[1769537361954,0.03,87646.0,87633.0,0.19192472]
[1769537362209,0.03,87644.0,87636.0,0.02495437]
[1769537362544,0.32111063,87659.0,87640.0,0.19192472]
[1769537362545,0.18471209,87659.0,87640.0,0.19192472]
[1769537362785,0.00986055,87640.0,87621.0,0.04097638]
[1769537362983,0.03,87639.0,87621.0,0.04097638]
[1769537363183,0.03,87639.0,87623.0,0.02346634]
[1769537363339,0.03,87639.0,87625.0,0.02346634]
[1769537363547,0.03,87639.0,87627.0,0.02346634]
[1769537363759,0.03,87638.0,87627.0,0.02346634]
[1769537364131,0.03,87626.0,87613.0,0.02346634]
[1769537364330,0.03,87626.0,87580.0,0.34279898]
[1769537364535,0.03,87620.0,87602.0,0.04097638]
[1769537364747,0.03,87618.0,87603.0,0.01499685]
[1769537364948,0.03,87618.0,87603.0,0.19476705]
[1769537365748,0.02408354,87639.0,87619.0,0.20296657]
[1769537365948,0.1775087,87639.0,87619.0,0.20296657]
[1769537366155,0.05705667,87633.0,87604.0,0.02319637]
[1769537366357,0.34293858,87640.0,87606.0,0.1797702]
[1769537366358,0.02408354,87629.0,87606.0,0.1797702]
[1769537366538,0.1775087,87627.0,87606.0,0.20296657]
[1769537366738,0.05408354,87626.0,87607.0,0.1797702]
[1769537368055,0.23159224,87626.0,87607.0,0.1797702]
[1769537370195,0.0001396,87640.0,87616.0,0.04097638]
[1769537370403,0.02408354,87639.0,87619.0,0.1797702]
[1769537370636,0.02408354,87639.0,87619.0,0.20296657]
[1769537370841,0.02408354,87639.0,87620.0,0.02319637]
[1769537371052,0.02408354,87639.0,87622.0,0.02319637]
[1769537371248,0.02408354,87639.0,87622.0,0.20296657]
[1769537371463,0.03,87638.0,87622.0,0.20296657]
[1769537372126,0.03,87638.0,87616.0,0.04097638]
[1769537372127,0.0001396,87640.0,87630.0,0.04097638]
[1769537372324,0.0001396,87640.0,87632.0,0.20296657]
[1769537373140,0.0001396,87640.0,87610.0,0.34279898]
[1769537373141,0.03,87631.0,87618.0,0.02319637]
[1769537373396,0.03,87631.0,87582.0,0.0003053]
[1769537373397,0.03,87627.0,87610.0,0.02319637]
[1769537373683,0.03,87625.0,87610.0,0.02319637]
[1769537373853,0.03,87625.0,87616.0,0.04097638]
[1769537374018,0.03,87625.0,87611.0,0.20296657]
[1769537374459,0.03,87624.0,87611.0,0.20296657]
[1769537374836,0.03,87624.0,87617.0,0.04097638]
[1769537375077,0.03,87624.0,87611.0,0.20296657]
[1769537375240,0.03,87624.0,87612.0,0.02319637]
[1769537375435,0.03,87623.0,87612.0,0.02319637]
[1769537376668,0.03,87622.0,87612.0,0.06417275]
[1769537377097,0.03,87622.0,87613.0,0.1797702]
[1769537377667,0.20159224,87639.0,87614.0,0.02319637]
[1769537377848,0.1775087,87637.0,87616.0,0.1797702]
[1769537378002,0.11353241,87636.0,87617.0,0.02319637]
[1769537378197,0.20159224,87635.0,87617.0,0.02319637]
[1769537378656,0.03,87634.0,87617.0,0.02319637]
[1769537378854,0.2075087,87634.0,87617.0,0.02319637]
[1769537379262,0.03,87634.0,87618.0,0.1797702]
[1769537379602,0.03,87634.0,87619.0,0.02319637]
[1769537379985,0.2075087,87634.0,87619.0,0.02319637]
[1769537381744,0.0001396,87640.0,87621.0,0.02319637]
[1769537381946,0.03,87638.0,87622.0,0.02319637]
[1769537382150,0.03,87636.0,87622.0,0.02319637]
[1769537382468,0.03,87632.0,87615.0,0.02319637]
[1769537382702,0.0570474,87647.0,87617.0,0.02319637]
[1769537382910,0.1775087,87644.0,87619.0,0.02319637]
[1769537383140,0.1940891,87642.0,87619.0,0.02319637]
[1769537383367,0.1775087,87640.0,87619.0,0.02319637]
[1769537383574,0.14360557,87639.0,87619.0,0.02319637]
[1769537383755,0.03,87637.0,87619.0,0.02319637]
[1769537384853,0.0274,87666.0,87637.0,0.00013945]
[1769537385081,0.11362335,87655.0,87638.0,0.02499999]
[1769537385292,0.29113205,87654.0,87638.0,0.02499999]
[1769537385494,0.11362335,87653.0,87640.0,0.06597637]
[1769537385646,0.1775087,87652.0,87631.0,0.02499999]
[1769537385855,0.11362335,87651.0,87634.0,0.02499999]
[1769537386375,0.1775087,87657.0,87638.0,0.02499999]
[1769537386693,0.1775087,87655.0,87638.0,0.02499999]
[1769537386894,0.1775087,87653.0,87638.0,0.02468431]
[1769537387051,0.1775087,87651.0,87638.0,0.02468431]
[1769537387461,0.00031568,87649.0,87621.0,0.11724]
[1769537387671,0.1775087,87646.0,87627.0,0.04097638]
[1769537387897,0.1775087,87644.0,87627.0,0.04097638]
[1769537388267,0.1775087,87644.0,87628.0,0.06581853]
[1769537388476,0.1775087,87644.0,87628.0,0.06566069]
[1769537389367,0.1775087,87644.0,87628.0,0.02468431]
[1769537390914,0.1775087,87644.0,87628.0,0.02356205]
[1769537391110,0.1775087,87644.0,87628.0,0.02312414]
[1769537391437,0.1775087,87644.0,87628.0,0.02280864]
[1769537394875,0.03,87643.0,87630.0,0.0233685]
[1769537395633,0.21148654,87643.0,87630.0,0.0233685]